bitfinex/quotes_ETHUSD_20250823
["timestamp","ask_amount","ask_price","bid_price","bid_amount"]
[1755929230746,0.002,4765.3,4765.0,0.66]
[1755929230949,0.002,4765.3,4765.2,9.52556603]
[1755929231146,0.002,4765.3,4765.2,13.18556603]
[1755929231352,0.002,4765.3,4765.2,13.26958903]
[1755929231529,0.002,4765.3,4765.2,13.71268903]
[1755929231845,0.002,4765.3,4765.2,15.63848215]
[1755929232238,0.002,4765.3,4765.2,19.16748215]
[1755929232548,0.002,4765.3,4765.2,9.94471612]
[1755929235154,0.002,4765.3,4765.2,5.66981612]
[1755929235321,0.002,4765.3,4765.2,7.272023]
[1755929235750,0.002,4765.3,4765.2,7.574823]
[1755929236050,0.002,4765.3,4765.2,8.30162033]
[1755929240860,0.002,4765.3,4765.2,8.40342033]
[1755929243744,0.2998,4765.3,4765.2,4.13252033]
[1755929243952,0.2998,4765.3,4765.2,7.78607503]
[1755929244174,0.7679,4765.3,4765.2,7.78607503]
[1755929244553,0.2998,4765.3,4765.2,7.78607503]
[1755929245449,0.002,4765.3,4765.2,7.78607503]
[1755929246031,0.002,4765.3,4765.2,17.76314106]
[1755929246237,0.002,4765.3,4765.2,18.04683839]
[1755929251149,0.002,4765.3,4765.2,22.98203839]
[1755929251345,0.022,4765.8,4765.3,3.66]
[1755929251547,0.022,4765.8,4765.7,13.18196603]
[1755929251839,0.022,4765.8,4765.7,18.60066336]
[1755929252062,0.3198,4765.8,4765.7,14.49576603]
[1755929252253,0.3198,4765.8,4765.7,20.57563043]
[1755929252581,0.3198,4765.8,4765.7,20.57663043]
[1755929253673,0.7879,4765.8,4765.7,20.57663043]
[1755929253876,0.7879,4765.8,4765.7,20.57563043]
[1755929254774,0.7879,4765.8,4765.7,17.05363043]
[1755929255073,0.7879,4765.8,4765.7,20.57563043]
[1755929255876,0.7879,4765.8,4765.7,17.05363043]
[1755929256178,0.7879,4765.8,4765.7,20.57463043]
[1755929256350,0.3198,4765.8,4765.7,17.05363043]
[1755929256674,0.7879,4765.8,4765.7,20.57463043]
[1755929256865,0.3198,4765.8,4765.7,20.57463043]
[1755929257373,0.3198,4765.8,4765.7,11.3518644]
[1755929257558,0.7879,4765.8,4765.7,11.3518644]
[1755929258477,0.3198,4765.8,4765.7,11.3518644]
[1755929261108,0.022,4765.8,4765.7,12.1061644]
[1755929261306,0.022,4765.8,4765.7,11.7558644]
[1755929261663,0.022,4765.8,4765.7,11.4566644]
[1755929261890,0.022,4765.8,4765.7,10.9865644]
[1755929261891,0.7879,4765.8,4765.7,10.9865644]
[1755929262091,0.7879,4765.8,4765.7,10.3265644]
[1755929262294,0.7879,4765.8,4765.7,8.8968]
[1755929264100,0.022,4765.8,4765.7,8.8968]
[1755929264298,0.022,4765.8,4765.7,18.31396603]
[1755929264490,0.022,4765.8,4765.7,18.11956603]
[1755929264690,0.022,4765.8,4765.7,18.41876603]
[1755929264886,0.022,4765.8,4765.7,20.41095263]
[1755929268508,0.022,4765.8,4765.7,21.15944996]
[1755929269173,0.022,4765.8,4765.7,20.69464996]
[1755929270101,0.022,4765.8,4765.7,11.47188393]
[1755929271095,0.6792,4765.8,4765.7,3.7089866]
[1755929271306,0.6792,4765.8,4765.7,5.3386]
[1755929271478,0.6792,4765.8,4765.7,2.4816]
[1755929271681,0.6792,4765.8,4765.7,8.2338]
[1755929272190,0.6792,4765.8,4765.7,8.8938]
[1755929272598,0.6792,4765.8,4765.7,9.78318]
[1755929274228,0.6792,4765.8,4765.7,6.26618]
[1755929274379,0.6792,4765.8,4765.7,0.1048]
[1755929274710,0.6792,4765.8,4765.2,0.1048]
[1755929274913,0.2455,4765.8,4764.8,0.001]
[1755929275078,0.1048,4765.4,4764.9,3.519]
[1755929275278,0.1048,4765.4,4764.8,0.001]
[1755929275279,0.2872,4765.0,4764.8,0.001]
[1755929275697,0.4358,4764.9,4764.8,3.521]
[1755929276022,0.723,4764.9,4764.8,3.521]
[1755929276321,0.723,4764.9,4764.8,0.001]
[1755929278506,2.966685,4764.9,4764.8,0.001]
[1755929279332,6.07071917,4764.9,4764.8,0.001]
[1755929279496,15.74467113,4764.9,4764.8,0.001]
[1755929279823,16.60056149,4764.9,4764.8,0.001]
[1755929280415,19.19924142,4764.9,4764.8,0.001]
[1755929280729,20.07420023,4764.9,4764.8,0.001]
[1755929280933,11.9816662,4764.4,4764.1,0.001]
[1755929281253,19.66227523,4764.4,4764.1,0.001]
[1755929281542,17.99917506,4764.4,4764.1,0.001]
[1755929281754,17.88164232,4764.4,4764.1,0.001]
[1755929282396,19.98054249,4764.4,4764.1,0.001]
[1755929282636,18.21008756,4764.4,4764.1,0.001]
[1755929283662,18.0141972,4764.4,4764.1,0.001]
[1755929284313,24.49501127,4764.4,4764.1,0.001]
[1755929284808,25.13859942,4764.4,4764.1,0.001]
[1755929285428,27.04268206,4764.4,4764.1,0.001]
[1755929285664,24.94378189,4764.4,4764.1,0.001]
[1755929286201,25.02790389,4764.4,4764.1,0.001]
[1755929288971,0.66,4764.2,4764.1,0.001]
[1755929289306,0.9472,4764.2,4764.1,0.001]
[1755929289499,1.383,4764.2,4763.8,0.021]
[1755929289699,1.383,4764.2,4763.3,0.001]
[1755929289700,1.16,4763.4,4763.3,0.001]
[1755929289857,14.6332,4763.4,4763.3,0.001]
[1755929290063,14.6738,4763.4,4763.3,0.001]
[1755929290271,14.75794,4763.4,4763.3,0.001]
[1755929290474,1.16,4763.2,4761.9,0.001]
[1755929290672,1.4472,4763.2,4761.9,0.001]
[1755929291095,1.883,4763.2,4761.9,0.001]
[1755929291365,1.383,4763.2,4761.9,0.001]
[1755929291565,1.883,4763.2,4761.9,0.001]
[1755929291793,6.98242895,4763.2,4761.9,0.001]
[1755929292173,12.22276603,4762.9,4761.9,0.001]
[1755929292403,16.03796603,4762.9,4761.9,0.001]
[1755929292764,16.47376603,4762.9,4761.9,0.001]
[1755929293405,19.23332722,4762.9,4761.9,0.001]
[1755929294892,17.13376603,4762.9,4761.9,0.001]
[1755929295079,12.88276603,4762.0,4761.9,0.001]
[1755929295397,18.31196603,4762.0,4761.9,0.001]
[1755929295586,18.85256603,4762.0,4761.9,0.001]
[1755929295781,19.26532047,4762.0,4761.9,0.001]
[1755929296387,21.36527847,4762.0,4761.9,0.001]
[1755929296589,15.73732047,4762.0,4761.9,0.001]
[1755929296762,19.26632047,4762.0,4761.9,0.001]
[1755929299268,19.28102047,4762.0,4761.9,0.001]
[1755929299877,5.02675444,4762.0,4761.9,0.3123]
[1755929300082,8.330964,4762.0,4761.9,0.3123]
[1755929300302,5.330964,4762.0,4761.9,0.3123]
[1755929300902,8.633564,4762.0,4761.9,0.001]
[1755929301293,8.330964,4762.0,4761.9,0.001]
[1755929302009,8.226164,4762.0,4761.9,0.001]
[1755929302312,15.460764,4762.0,4761.9,0.001]
[1755929302874,15.158164,4762.0,4761.9,0.001]
[1755929303484,15.460764,4762.0,4761.9,0.001]
[1755929304074,11.932764,4762.0,4761.9,0.001]
[1755929304275,15.160164,4762.0,4761.9,0.3123]
[1755929305219,11.630164,4762.0,4761.9,0.7756]
[1755929305418,15.159164,4762.0,4761.9,0.7756]
[1755929306783,1.614,4762.0,4761.9,0.7756]
[1755929306971,3.531,4762.0,4761.9,0.7756]
[1755929307376,3.532,4762.2,4761.9,0.7756]
[1755929307576,3.532,4762.2,4761.9,0.3123]
[1755929307801,3.532,4762.2,4762.0,0.4633]
[1755929308003,3.532,4762.2,4762.1,0.3113]
[1755929308521,3.532,4762.2,4762.1,0.7746]
[1755929311833,3.6368,4762.2,4762.1,0.7746]
[1755929312684,3.6368,4762.2,4762.1,0.3113]
[1755929313988,3.6348,4762.2,4762.1,0.7746]
[1755929316205,3.6348,4762.2,4762.1,0.3113]
[1755929316430,3.6348,4762.2,4761.9,0.001]
[1755929316631,3.9374,4762.2,4761.9,0.001]
[1755929316841,3.6348,4762.2,4761.9,0.001]
[1755929317030,3.6348,4762.2,4762.1,0.3113]
[1755929317235,3.6348,4762.2,4762.1,0.7746]
[1755929318802,0.1048,4762.2,4762.1,0.7746]
[1755929322517,3.53,4762.3,4762.1,0.7746]
[1755929322717,3.53,4762.3,4762.1,0.3113]
[1755929323050,3.53,4762.3,4762.2,0.4633]
[1755929323264,3.53,4762.3,4762.2,0.7746]
[1755929324666,3.6328,4762.4,4762.2,0.7746]
[1755929324854,3.6328,4762.4,4762.2,0.3113]
[1755929325059,3.6328,4762.4,4762.3,0.4633]
[1755929325235,3.6328,4762.4,4762.3,0.7746]
[1755929328266,3.6328,4762.4,4761.9,0.001]
[1755929328466,0.4515,4762.3,4761.9,0.001]
[1755929328783,0.4112,4762.0,4761.9,0.001]
[1755929328966,3.9382,4762.0,4761.9,0.001]
[1755929329272,4.3897,4762.0,4761.9,0.001]
[1755929335861,7.3897,4762.0,4761.9,0.001]
[1755929339780,7.473855,4762.0,4761.9,0.001]
[1755929341482,8.133855,4762.0,4761.9,0.001]
[1755929342054,8.46245553,4762.0,4761.8,0.021]
[1755929342266,3.4515,4761.9,4761.8,0.021]
[1755929342466,0.66,4761.8,4761.6,0.001]
[1755929342695,3.66,4761.4,4759.8,0.024]
[1755929342864,13.27612583,4761.0,4759.8,0.024]
[1755929343188,16.80112583,4761.0,4759.8,0.024]
[1755929343386,17.58128324,4761.0,4759.8,0.024]
[1755929343559,17.66546224,4761.0,4759.8,0.024]
[1755929344955,0.66,4760.8,4759.8,0.024]
[1755929345158,12.51132583,4759.9,4759.8,0.024]
[1755929345375,16.14012583,4759.9,4759.8,0.024]
[1755929345791,17.04612583,4759.9,4759.8,0.024]
[1755929346386,16.59462583,4759.9,4759.8,0.024]
[1755929346771,7.8412,4759.9,4759.8,0.024]
[1755929346965,7.3897,4759.9,4759.8,0.024]
[1755929347183,7.0833,4759.9,4759.8,0.024]
[1755929347779,7.2827,4759.9,4759.8,0.024]
[1755929347982,7.0833,4759.9,4759.8,0.3261]
[1755929349974,7.7317,4759.9,4759.8,0.024]
[1755929351600,7.2827,4759.9,4759.8,0.024]
[1755929351773,7.0833,4759.9,4759.8,0.024]
[1755929351976,7.2852,4759.9,4759.8,0.024]
[1755929352376,7.7317,4759.9,4759.8,0.024]
[1755929352577,8.3917,4759.9,4759.8,0.024]
[1755929355484,15.3237,4759.9,4759.8,0.024]
[1755929357910,14.8772,4759.9,4759.8,0.024]
[1755929358780,15.3325,4759.9,4759.8,0.024]
[1755929360385,15.66124022,4759.9,4759.8,0.024]
[1755929365747,15.00404022,4759.9,4759.8,0.3216]
[1755929365954,3.66,4759.8,4758.8,0.024]
[1755929366143,12.20492583,4758.9,4758.8,0.024]
[1755929366321,16.78012583,4758.9,4758.8,0.024]
[1755929366918,16.86433683,4758.9,4758.8,0.024]
[1755929368352,3.66,4758.8,4758.1,0.004]
[1755929368556,13.15232583,4758.2,4758.1,0.004]
[1755929368853,16.78012583,4758.2,4758.1,0.004]
[1755929369351,16.86435183,4758.2,4758.1,0.004]
[1755929371029,16.57695183,4758.2,4758.1,0.3016]
[1755929371622,16.86435183,4758.2,4758.1,0.004]
[1755929372220,16.57695183,4758.2,4758.1,0.004]
[1755929372424,17.31965183,4758.2,4758.1,0.004]
[1755929372624,3.66,4758.1,4757.8,0.024]
[1755929372863,3.3922,4757.9,4757.8,0.024]
[1755929373234,3.8475,4757.9,4757.8,0.024]
[1755929373740,0.66,4757.8,4756.8,0.4572]
[1755929373949,9.0864,4757.8,4756.8,0.4572]
[1755929374254,9.5417,4757.8,4756.8,0.4572]
[1755929374982,9.5417,4757.8,4756.8,0.02]
[1755929375181,9.5417,4757.8,4756.8,0.4572]
[1755929375383,9.9989,4757.8,4756.8,0.4572]
[1755929377785,9.9989,4757.8,4756.8,0.02]
[1755929377963,9.9989,4757.8,4757.0,0.4372]
[1755929378340,12.10071176,4757.8,4756.8,0.02]
[1755929378542,0.7648,4756.9,4756.8,0.02]
[1755929378743,8.9048,4756.9,4756.8,0.3176]
[1755929379074,9.342,4756.9,4756.8,0.3176]
[1755929379858,8.682,4756.9,4756.8,0.7548]
[1755929382943,5.158,4756.9,4756.8,0.7548]
[1755929383146,8.682,4756.9,4756.8,0.7548]
[1755929383369,8.2458,4756.9,4756.8,0.7548]
[1755929385082,8.2458,4756.9,4756.8,0.7588]
[1755929385285,6.932,4757.0,4756.8,0.7588]
[1755929385491,3.6298,4756.9,4756.8,0.7588]
[1755929385653,3.6298,4756.9,4756.8,0.3216]
[1755929386248,3.6298,4756.9,4756.8,0.7588]
[1755929386444,6.6298,4756.9,4756.8,0.7588]
[1755929386645,6.6298,4756.9,4756.8,0.3216]
[1755929386883,6.6298,4756.9,4756.8,0.024]
[1755929387250,6.9514,4756.9,4756.8,0.024]
[1755929387556,16.82372583,4756.9,4756.8,0.024]
[1755929387879,17.48372583,4756.9,4756.8,0.024]
[1755929388383,24.41572583,4756.9,4756.8,0.024]
[1755929388581,24.41572583,4756.9,4756.7,0.004]
[1755929388582,3.66,4756.8,4756.7,0.004]
[1755929388783,6.52135361,4756.8,4756.7,0.004]
[1755929388959,12.20492583,4755.9,4755.8,0.02]
[1755929389163,17.76832583,4755.9,4755.8,0.02]
[1755929389785,17.92342583,4755.9,4755.8,0.02]
[1755929390579,8.7185,4755.9,4755.8,0.3206]
[1755929390998,9.0351,4755.9,4755.8,0.02]
[1755929391292,8.7185,4755.9,4755.8,0.02]
[1755929391497,9.0351,4755.9,4755.8,0.02]
[1755929392004,8.7185,4755.9,4755.8,0.02]
[1755929392164,9.0351,4755.9,4755.8,0.02]
[1755929392365,9.6951,4755.9,4755.8,0.02]
[1755929392794,10.1376,4755.9,4755.8,0.02]
[1755929393269,9.6951,4755.9,4755.8,0.02]
[1755929394301,10.1376,4755.9,4755.8,0.02]
[1755929395183,9.6951,4755.9,4755.8,0.02]
[1755929395474,10.1376,4755.9,4755.8,0.02]
[1755929395679,9.6951,4755.9,4755.8,0.02]
[1755929396277,10.1376,4755.9,4755.8,0.02]
[1755929398003,9.6951,4755.9,4755.8,0.02]
[1755929398208,5.8525,4755.9,4755.8,0.3206]
[1755929398410,9.3785,4755.9,4755.8,0.3206]
[1755929398613,9.3785,4755.9,4755.8,0.02]
[1755929398801,9.6951,4755.9,4755.8,0.02]
[1755929398979,10.1376,4755.9,4755.8,0.02]
[1755929401023,9.3785,4755.9,4755.8,0.02]
[1755929401216,9.6951,4755.9,4755.8,0.02]
[1755929401817,9.6951,4755.9,4755.8,0.024]
[1755929402989,9.3785,4755.9,4755.8,0.3246]
[1755929403189,9.3785,4755.9,4755.8,0.024]
[1755929404221,9.6951,4755.9,4755.8,0.024]
[1755929404422,9.3785,4755.9,4755.8,0.3246]
[1755929405333,8.7185,4755.9,4755.8,0.3246]
[1755929405540,8.2468,4755.9,4755.8,0.7963]
[1755929407039,8.2468,4755.9,4755.8,0.024]
[1755929407250,3.66,4755.8,4755.3,0.004]
[1755929407532,9.20492583,4755.4,4755.3,0.4757]
[1755929407737,15.73092583,4755.4,4755.3,0.3046]
[1755929407938,15.73092583,4755.4,4755.3,0.7763]
[1755929408140,16.69552583,4755.4,4755.3,0.004]
[1755929408312,17.01212583,4755.4,4755.3,0.004]
[1755929408512,17.33502583,4755.4,4755.3,0.004]
[1755929410534,19.43789835,4755.4,4755.3,0.004]
[1755929410718,17.33502583,4755.4,4755.3,0.004]
[1755929410942,19.43789835,4755.4,4755.3,0.004]
[1755929411285,0.66,4754.9,4754.8,0.024]
[1755929411433,0.66,4754.5,4753.8,0.02]
[1755929411635,13.18152583,4753.9,4753.8,0.02]
[1755929411941,18.32552583,4753.9,4753.8,0.02]
[1755929412152,18.79722583,4753.9,4753.8,0.02]
[1755929412347,18.79722583,4753.9,4750.4,1.617]
[1755929412348,3.66,4753.8,4750.4,1.617]
[1755929412672,0.66,4753.4,4752.9,0.4717]
[1755929412842,3.66,4753.4,4753.3,0.3006]
[1755929413043,7.5116,4753.4,4752.7,0.4717]
[1755929413240,9.20492583,4752.9,4750.0,0.4717]
[1755929413428,9.20492583,4752.9,4752.2,0.4717]
[1755929413429,18.33352583,4752.9,4752.2,0.4717]
[1755929413634,18.01692583,4752.9,4752.2,0.4717]
[1755929413832,8.817,4752.9,4752.8,0.7923]
[1755929414255,8.817,4752.9,4752.8,0.3206]
[1755929414872,8.157,4752.9,4752.8,0.3206]
[1755929415378,18.44388231,4752.9,4752.8,0.02]
[1755929416074,14.58728231,4752.9,4752.8,0.02]
[1755929416289,14.58728231,4752.9,4749.8,0.02]
[1755929416290,3.66,4752.8,4749.8,0.02]
[1755929416439,0.9766,4751.9,4751.0,0.4717]
[1755929416784,9.1406,4751.9,4751.0,0.4717]
[1755929416949,9.5831,4751.9,4750.5,0.4717]
[1755929417130,10.0548,4751.9,4750.5,0.4717]
[1755929417330,12.86492583,4750.9,4750.5,0.4717]
[1755929417565,18.13852583,4750.9,4750.8,0.3206]
[1755929417937,8.2736,4750.9,4750.8,0.7923]
[1755929418275,18.13852583,4750.9,4750.8,0.3206]
[1755929418475,8.9336,4750.9,4750.8,0.3206]
[1755929418649,8.9336,4750.9,4750.8,0.2706]
[1755929418966,8.9336,4750.9,4750.8,0.7213]
[1755929418967,4.7226,4750.9,4750.8,0.7213]
[1755929419138,8.2796,4750.9,4750.8,0.7213]
[1755929419776,5.2806,4750.9,4750.8,0.7213]
[1755929420978,1.7226,4750.9,4750.8,0.7213]
[1755929421275,5.2816,4750.9,4750.8,0.7213]
[1755929421838,0.1056,4750.9,4750.8,0.7213]
[1755929422092,3.6636,4750.9,4750.8,0.7213]
[1755929422874,0.1056,4750.9,4750.8,0.7213]
[1755929423043,3.558,4751.1,4750.8,0.7213]
[1755929423239,0.1056,4751.1,4750.9,0.4507]
[1755929423444,0.1056,4751.1,4751.0,0.3074]
[1755929424149,0.1056,4751.1,4751.0,0.7581]
[1755929426483,0.1056,4751.7,4751.0,0.7581]
[1755929426652,0.1056,4751.7,4751.0,0.413]
[1755929426985,0.1056,4751.7,4751.1,0.47174775]
[1755929427195,0.1056,4751.7,4751.6,0.3074]
[1755929427689,0.1056,4751.7,4751.6,0.7581]
[1755929429591,3.558,4752.2,4751.6,0.7581]
[1755929429795,0.1056,4752.0,4751.6,0.7581]
[1755929430096,0.1056,4752.0,4751.7,0.4507]
[1755929430276,0.1056,4752.0,4751.9,0.3074]
[1755929430654,0.1056,4752.0,4751.9,0.7581]
[1755929430854,1.618,4752.6,4751.9,0.7581]
[1755929431084,0.1056,4752.3,4752.0,0.4507]
[1755929431291,0.02,4752.8,4752.2,0.3074]
[1755929431659,0.1256,4752.8,4752.3,0.4507]
[1755929431983,0.1256,4752.8,4752.7,0.3074]
[1755929432154,0.1256,4752.8,4752.7,0.7581]
[1755929434002,0.1256,4752.8,4752.7,0.8637]
[1755929434003,0.02,4752.8,4752.7,0.8637]
[1755929434755,0.02,4752.8,4752.7,1.5237]
[1755929435085,3.8757,4752.8,4752.7,0.631978]
[1755929435385,3.8757,4752.8,4752.7,0.3074]
[1755929435386,0.1256,4752.8,4752.7,0.3074]
[1755929437970,0.1256,4752.8,4751.8,0.004]
[1755929438201,0.4243,4752.8,4751.8,0.004]
[1755929438361,0.1056,4752.2,4751.8,0.004]
[1755929438562,0.4043,4751.9,4751.8,0.004]
[1755929439162,0.8742,4751.9,4751.8,0.004]
[1755929439362,0.4043,4751.9,4751.8,0.004]
[1755929439574,3.6706,4751.9,4751.8,0.3114]
[1755929439995,3.6706,4751.9,4751.8,0.004]
[1755929440197,3.9693,4751.9,4751.8,0.004]
[1755929441004,3.6706,4751.9,4751.8,0.3114]
[1755929441312,3.6706,4751.9,4751.8,0.004]
[1755929441512,3.9693,4751.9,4751.8,0.004]
[1755929442017,0.1056,4751.9,4751.8,0.3114]
[1755929442225,3.9683,4751.9,4751.8,0.004]
[1755929442608,4.4382,4751.9,4751.8,0.004]
[1755929442802,3.9683,4751.9,4751.8,0.004]
[1755929443513,4.4382,4751.9,4751.8,0.004]
[1755929444590,3.6696,4751.9,4751.8,0.004]
[1755929444791,3.6686,4751.9,4751.8,0.004]
[1755929445616,3.9673,4751.9,4751.8,0.004]
[1755929446118,4.4372,4751.9,4751.8,0.004]
[1755929446329,7.4372,4751.9,4751.8,0.004]
[1755929446921,7.9935,4751.9,4751.8,0.004]
[1755929448316,8.6535,4751.9,4751.8,0.004]
[1755929449523,7.9935,4751.9,4751.8,0.004]
[1755929449886,3.9606,4751.9,4751.8,0.004]
[1755929450115,7.9839,4751.9,4751.8,0.004]
[1755929452821,8.6449,4751.9,4751.8,0.004]
[1755929453387,4.4209,4751.9,4751.8,0.004]
[1755929453592,7.9899,4751.9,4751.8,0.004]
[1755929453917,8.14444526,4751.9,4751.8,0.004]
[1755929456217,5.76447219,4751.8,4751.3,0.004]
[1755929456457,1.076,4751.4,4751.3,0.004]
[1755929456633,7.646,4751.4,4751.3,0.004]
[1755929456925,8.189647,4751.4,4751.3,0.004]
[1755929458526,4.160347,4751.4,4751.3,0.004]
[1755929458712,3.189947,4751.4,4751.3,0.3206]
[1755929459023,6.759947,4751.4,4751.3,0.3206]
[1755929459817,7.070347,4751.4,4751.3,0.004]
[1755929460426,6.6756,4751.4,4751.3,0.3206]
[1755929460803,0.1056,4751.4,4751.3,0.3206]
[1755929461120,3.6766,4751.4,4751.3,0.7582]
[1755929464604,3.6756,4751.4,4751.3,0.7582]
[1755929466629,3.6756,4751.4,4751.3,0.3206]
[1755929466832,3.6736,4751.4,4751.3,0.7582]
[1755929467536,6.984,4751.4,4751.3,0.004]
[1755929467836,7.4433,4751.4,4751.3,0.004]
[1755929469044,8.1033,4751.4,4751.3,0.004]
[1755929469632,4.5353,4751.4,4751.3,0.004]
[1755929469821,8.1053,4751.4,4751.3,0.004]
[1755929470971,8.43464505,4751.4,4751.3,0.004]
[1755929471910,8.5898702,4751.4,4751.3,0.004]
[1755929472115,8.6742232,4751.4,4751.3,0.004]
[1755929472646,8.6722232,4751.4,4751.3,0.004]
[1755929474813,3.9849232,4751.4,4751.3,0.004]
[1755929475012,4.59852515,4751.4,4751.3,0.004]
[1755929475248,5.25852515,4751.4,4751.3,0.004]
[1755929476646,8.25852515,4751.4,4751.3,0.004]
[1755929477564,10.6925039,4751.4,4751.3,0.004]
[1755929477856,10.36316799,4751.4,4751.3,0.004]
[1755929478655,10.44752699,4751.4,4751.3,0.004]
[1755929479062,10.44752699,4751.4,4750.8,0.004]
[1755929479063,3.66,4751.3,4750.8,0.004]
[1755929479249,1.0612,4750.9,4750.8,0.004]
[1755929479429,7.6302,4750.9,4750.8,0.004]
[1755929479635,8.0916,4750.9,4750.8,0.004]
[1755929479836,10.28084134,4750.9,4750.8,0.004]
[1755929480767,10.61026157,4750.9,4750.8,0.004]
[1755929481630,0.66,4750.4,4750.3,0.004]
[1755929481839,9.2512,4750.4,4750.3,0.004]
[1755929482056,11.35628588,4750.4,4750.3,0.004]
[1755929482267,11.81768588,4750.4,4750.3,0.004]
[1755929482464,10.04203985,4750.4,4750.3,0.004]
[1755929482968,8.62403985,4750.4,4750.3,0.004]
[1755929483178,9.38103985,4750.4,4750.3,0.004]
[1755929483466,10.04103985,4750.4,4750.3,0.004]
[1755929483667,9.28403985,4750.4,4750.3,0.004]
[1755929484163,9.28503985,4750.4,4750.3,0.3051]
[1755929484364,5.71403985,4750.4,4750.3,0.3051]
[1755929484578,1.7246,4750.4,4750.3,0.7503]
[1755929484781,5.2946,4750.4,4750.3,0.7503]
[1755929484992,5.2946,4750.4,4750.3,0.3051]
[1755929485292,9.2502,4750.4,4750.3,0.004]
[1755929485445,9.1446,4750.4,4750.3,0.004]
[1755929485645,5.279,4750.4,4750.3,0.004]
[1755929486007,8.191,4750.4,4750.3,0.3051]
[1755929486179,8.4866,4750.4,4750.3,0.004]
[1755929486348,8.191,4750.4,4750.3,0.004]
[1755929486543,8.191,4750.4,4750.3,0.3051]
[1755929486744,4.619,4750.4,4750.3,0.3051]
[1755929486973,8.853,4750.4,4750.3,0.3051]
[1755929487179,9.1486,4750.4,4750.3,0.004]
[1755929489542,9.5938,4750.4,4750.3,0.004]
[1755929489747,9.5928,4750.4,4750.3,0.004]
[1755929490049,11.69788588,4750.4,4750.3,0.004]
[1755929490243,10.0542,4750.4,4750.3,0.004]
[1755929490448,12.16428588,4750.4,4750.3,0.004]
[1755929490648,6.0198,4750.4,4750.3,0.004]
[1755929490849,9.5978,4750.4,4750.3,0.004]
[1755929491076,10.0592,4750.4,4750.3,0.004]
[1755929491446,15.64628588,4750.4,4750.3,0.004]
[1755929492281,15.97573577,4750.4,4750.3,0.004]
[1755929492488,12.39773577,4750.4,4750.3,0.004]
[1755929492987,15.98273577,4750.4,4750.3,0.004]
[1755929493388,9.24730748,4749.9,4749.8,0.024]
[1755929493552,13.12790748,4749.9,4749.8,0.024]
[1755929493889,7.4376,4749.9,4749.8,0.024]
[1755929494062,13.91881095,4749.9,4749.8,0.024]
[1755929494252,13.91981095,4749.9,4749.8,0.024]
[1755929494688,11.81450347,4749.9,4749.8,0.024]
[1755929494907,11.35310347,4749.9,4749.8,0.024]
[1755929495059,11.43748947,4749.9,4749.8,0.024]
[1755929495386,11.89888947,4749.9,4749.8,0.024]
[1755929495756,12.00448947,4749.9,4749.8,0.024]
[1755929496371,21.25973053,4749.9,4749.8,0.024]
[1755929496571,28.19173053,4749.9,4749.8,0.024]
[1755929496777,30.29703801,4749.9,4749.8,0.024]
[1755929496991,29.96753454,4749.9,4749.8,0.024]
[1755929497857,27.86222706,4749.9,4749.8,0.024]
[1755929498057,29.96753454,4749.9,4749.8,0.024]
[1755929498255,29.86193454,4749.9,4749.8,0.024]
[1755929499278,22.94293454,4749.9,4749.8,0.024]
[1755929499657,20.37622706,4749.9,4749.8,0.024]
[1755929499868,19.21201738,4749.9,4749.8,0.024]
[1755929500074,22.81101738,4749.9,4749.8,0.024]
[1755929500369,11.15486884,4749.9,4749.8,0.024]
[1755929500771,11.45046884,4749.9,4749.8,0.024]
[1755929501401,14.52346433,4749.9,4749.8,0.024]
[1755929504271,14.52346433,4749.9,4748.8,0.02]
[1755929504272,4.923,4748.9,4748.8,0.02]
[1755929504485,29.58087987,4748.9,4748.8,0.02]
[1755929504681,13.822,4748.9,4748.8,0.3211]
[1755929504885,17.8632,4748.9,4748.8,0.3211]
[1755929505084,18.19275174,4748.9,4748.8,0.3211]
[1755929505284,21.05550254,4748.9,4748.8,0.02]
[1755929505883,14.89235174,4748.9,4748.8,0.02]
[1755929506084,18.19375174,4748.9,4748.8,0.02]
[1755929506378,20.29950254,4748.9,4748.8,0.02]
[1755929506681,18.35558769,4748.9,4748.8,0.02]
[1755929506893,18.65118769,4748.9,4748.8,0.02]
[1755929507096,21.21833849,4748.9,4748.8,0.02]
[1755929507276,17.62133849,4748.9,4748.8,0.02]
[1755929507474,21.22433849,4748.9,4748.8,0.02]
[1755929508075,20.89478675,4748.9,4748.8,0.02]
[1755929508279,21.00038675,4748.9,4748.8,0.02]
[1755929509693,20.53898675,4748.9,4748.8,0.02]
[1755929510709,18.43523595,4748.9,4748.8,0.02]
[1755929510919,17.26555099,4748.9,4748.8,0.02]
[1755929511217,20.87055099,4748.9,4748.8,0.02]
[1755929512615,3.66,4748.5,4747.9,0.4535]
[1755929512818,5.76592818,4748.5,4748.4,0.3166]
[1755929513015,2.879,4748.0,4747.8,0.02]
[1755929513217,1.62,4747.9,4747.8,0.02]
[1755929513392,1.62,4747.9,4747.8,0.3366]
[1755929513715,8.909,4747.9,4747.8,0.3366]